fUSD/lending_fUSD_20260515
["ID","MTS","AMOUNT","RATE_DAILY","PERIOD"]
[422299372,1778799047000,-175.0,0.00034493,30]
[422299370,1778799047000,-175.0,0.00034493,30]
[422299369,1778799047000,-175.0,0.00034493,30]
[422299371,1778799047000,-175.0,0.00034493,30]
[422299367,1778799047000,-175.0,0.00034493,30]
[422299374,1778799047000,-175.0,0.00034493,30]
[422299373,1778799047000,-175.0,0.00034493,30]
[422299377,1778799047000,-175.0,0.00034493,30]
[422299375,1778799047000,-175.0,0.00034493,30]
[422299376,1778799047000,-175.0,0.00034493,30]
[422299378,1778799047000,-175.0,0.00034493,30]
[422299379,1778799047000,-175.0,0.00034493,30]
[422299380,1778799047000,-175.0,0.00034493,30]
[422299383,1778799047000,-623.0,0.00034507,12]
[422299381,1778799047000,-175.0,0.00034493,30]
[422299332,1778799047000,-41023.0,0.00034367,30]
[422299355,1778799047000,-175.0,0.00034493,30]
[422299352,1778799047000,-175.0,0.00034493,30]
[422299382,1778799047000,-155.0,0.00034493,30]
[422299351,1778799047000,-175.0,0.00034493,30]
[422299360,1778799047000,-175.0,0.00034493,30]
[422299326,1778799047000,-41023.0,0.00034172,30]
[422299325,1778799047000,-2209.03,0.000341,30]
[422299333,1778799047000,-366.82991459,0.00034444,30]
[422299335,1778799047000,-175.0,0.00034493,30]
[422299327,1778799047000,-2458.5,0.00034182,7]
[422299330,1778799047000,-150.0,0.00034267,2]
[422299328,1778799047000,-1000.0,0.00034247,120]
[422299329,1778799047000,-158.0,0.00034262,3]
[422299331,1778799047000,-41023.0,0.00034269,30]
[422299336,1778799047000,-175.0,0.00034493,30]
[422299338,1778799047000,-175.0,0.00034493,30]
[422299339,1778799047000,-175.0,0.00034493,30]
[422299323,1778799047000,-41023.0,0.00034074,30]
[422299347,1778799047000,-175.0,0.00034493,30]
[422299337,1778799047000,-175.0,0.00034493,30]
[422299361,1778799047000,-175.0,0.00034493,30]
[422299350,1778799047000,-175.0,0.00034493,30]
[422299345,1778799047000,-175.0,0.00034493,30]
[422299346,1778799047000,-175.0,0.00034493,30]
[422299349,1778799047000,-175.0,0.00034493,30]
[422299348,1778799047000,-175.0,0.00034493,30]
[422299341,1778799047000,-175.0,0.00034493,30]
[422299342,1778799047000,-175.0,0.00034493,30]
[422299343,1778799047000,-175.0,0.00034493,30]
[422299353,1778799047000,-175.0,0.00034493,30]
[422299340,1778799047000,-175.0,0.00034493,30]
[422299344,1778799047000,-175.0,0.00034493,30]
[422299422,1778799048000,-500.0,0.00034939,120]
[422299409,1778799048000,-1651.0,0.00034826,11]
[422299411,1778799048000,-518.781704,0.00034939,120]
[422299418,1778799048000,-500.0,0.00034939,120]
[422299419,1778799048000,-500.0,0.00034939,120]
[422299420,1778799048000,-500.0,0.00034939,120]
[422299417,1778799048000,-265.0232416,0.00034939,120]
[422299423,1778799048000,-500.0,0.00034939,120]
[422299421,1778799048000,-500.0,0.00034939,120]
[422299407,1778799048000,-2810.45,0.000348,30]
[422299415,1778799048000,-500.0,0.00034939,120]
[422299427,1778799048000,-500.0,0.00034939,120]
[422299424,1778799048000,-500.0,0.00034939,120]
[422299428,1778799048000,-500.0,0.00034939,120]
[422299426,1778799048000,-548.1948626,0.00034939,120]
[422299425,1778799048000,-500.0,0.00034939,120]
[422299430,1778799048000,-500.0,0.00034939,120]
[422299440,1778799048000,-500.0,0.00034939,120]
[422299429,1778799048000,-500.0,0.00034939,120]
[422299432,1778799048000,-500.0,0.00034939,120]
[422299433,1778799048000,-500.0,0.00034939,120]
[422299410,1778799048000,-41023.0,0.00034855,30]
[422299431,1778799048000,-786.1040589,0.00034939,120]
[422299416,1778799048000,-500.0,0.00034939,120]
[422299412,1778799048000,-220.7780611,0.00034939,120]
[422299392,1778799048000,-41023.0,0.00034562,30]
[422299414,1778799048000,-185.7781647,0.00034939,120]
[422299437,1778799048000,-500.0,0.00034939,120]
[422299384,1778799048000,-313.61,0.00034521,120]
[422299385,1778799048000,-170.0,0.00034521,100]
[422299388,1778799048000,-476.0,0.00034559,30]
[422299386,1778799048000,-286.0,0.00034559,30]
[422299387,1778799048000,-906.0,0.00034559,30]
[422299389,1778799048000,-301.0,0.00034559,30]
[422299390,1778799048000,-428.0,0.00034559,30]
[422299394,1778799048000,-239.0,0.00034567,30]
[422299401,1778799048000,-163.89776066,0.00034707,30]
[422299397,1778799048000,-4071.0,0.00034567,30]
[422299408,1778799048000,-970.69,0.000348,7]
[422299391,1778799048000,-1953.0,0.00034559,30]
[422299399,1778799048000,-41023.0,0.00034611,30]
[422299396,1778799048000,-3121.0,0.00034567,30]
[422299398,1778799048000,-396.0,0.00034567,30]
[422299393,1778799048000,-631.0,0.00034567,30]
[422299395,1778799048000,-469.0,0.00034567,30]
[422299403,1778799048000,-41023.0,0.00034757,30]
[422299404,1778799048000,-150.0,0.00034781,2]
[422299413,1778799048000,-500.0,0.00034939,120]
[422299406,1778799048000,-150.0,0.00034796,5]
[422299405,1778799048000,-1500.0,0.00034795,2]
[422299402,1778799048000,-165.78,0.00034745,14]
[422299400,1778799048000,-41023.0,0.0003466,30]
[422299435,1778799048000,-500.0,0.00034939,120]
[422299434,1778799048000,-500.0,0.00034939,120]
[422299439,1778799048000,-500.0,0.00034939,120]
[422299467,1778799048000,-150.0,0.00035038,7]
[422299470,1778799048000,-150.0,0.00035038,7]
[422299468,1778799048000,-150.0,0.00035038,7]
[422299471,1778799048000,-152.22223688,0.00035038,7]
[422299469,1778799048000,-150.0,0.00035038,7]
[422299473,1778799048000,-150.0,0.00035038,7]
[422299472,1778799048000,-150.0,0.00035038,7]
[422299478,1778799048000,-153.24627148,0.00035078,7]
[422299475,1778799048000,-153.24627148,0.00035038,7]
[422299479,1778799048000,-153.24627148,0.00035117,7]
[422299476,1778799048000,-41039.0,0.0003505,30]
[422299477,1778799048000,-623.0,0.00035068,13]
[422299480,1778799048000,-153.24627148,0.00035156,7]
[422299482,1778799048000,-1100.0,0.00035186,2]
[422299484,1778799048000,-1100.0,0.00035186,2]
[422299485,1778799048000,-1100.0,0.00035186,2]
[422299483,1778799048000,-1100.0,0.00035186,2]
[422299487,1778799048000,-1100.0,0.00035186,2]
[422299481,1778799048000,-163.89776066,0.00035168,30]
[422299486,1778799048000,-1100.0,0.00035186,2]
[422299489,1778799048000,-1100.0,0.00035186,2]
[422299488,1778799048000,-1100.0,0.00035186,2]
[422299490,1778799048000,-1100.0,0.00035186,2]
[422299466,1778799048000,-150.0,0.00035038,7]
[422299465,1778799048000,-178.39541889,0.00035017,2]
[422299474,1778799048000,-150.0,0.00035038,7]
[422299463,1778799048000,-150.0,0.00035,2]
[422299438,1778799048000,-500.0,0.00034939,120]
[422299464,1778799048000,-500.0,0.00035001,120]
[422299436,1778799048000,-918.0760511,0.00034939,120]
[422299441,1778799048000,-892.292585,0.00034939,120]
[422299443,1778799048000,-500.0,0.00034939,120]
[422299444,1778799048000,-500.0,0.00034939,120]
[422299452,1778799048000,-500.0,0.00034939,120]
[422299445,1778799048000,-714.5683662,0.00034939,120]
[422299446,1778799048000,-421.6934164,0.00034939,120]
[422299451,1778799048000,-500.0,0.00034939,120]
[422299442,1778799048000,-665.2968157,0.00034939,120]
[422299450,1778799048000,-500.0,0.00034939,120]
[422299447,1778799048000,-500.0,0.00034939,120]
[422299448,1778799048000,-500.0,0.00034939,120]
[422299462,1778799048000,-61701.16971157,0.00035,7]
[422299456,1778799048000,-500.0,0.00034939,120]
[422299459,1778799048000,-493.75281562,0.0003495,3]
[422299460,1778799048000,-41023.0,0.00034953,30]
[422299453,1778799048000,-500.0,0.00034939,120]
[422299455,1778799048000,-500.0,0.00034939,120]
[422299457,1778799048000,-846.8901582,0.00034939,120]
[422299458,1778799048000,-373.4382039,0.0003495,3]
[422299454,1778799048000,-500.0,0.00034939,120]
[422299449,1778799048000,-500.0,0.00034939,120]
[422299461,1778799048000,-151.0,0.00034978,60]
[422299529,1778799049000,-150.0,0.00035595,7]
[422299532,1778799049000,-500.0,0.00035616,120]
[422299535,1778799049000,-500.0,0.00035616,120]
[422299531,1778799049000,-500.0,0.00035616,120]
[422299526,1778799049000,-396.0,0.00035567,30]
[422299527,1778799049000,-150.0,0.00035569,7]
[422299525,1778799049000,-4071.0,0.00035567,30]
[422299523,1778799049000,-469.0,0.00035567,30]
[422299524,1778799049000,-3121.0,0.00035567,30]
[422299533,1778799049000,-500.0,0.00035616,120]
[422299528,1778799049000,-153.24627148,0.00035589,7]
[422299537,1778799049000,-500.0,0.00035616,120]
[422299546,1778799049000,-500.0,0.00035616,120]
[422299530,1778799049000,-150.0,0.00035595,7]
[422299541,1778799049000,-500.0,0.00035616,120]
[422299538,1778799049000,-500.0,0.00035616,120]
[422299539,1778799049000,-500.0,0.00035616,120]
[422299540,1778799049000,-500.0,0.00035616,120]
[422299536,1778799049000,-500.0,0.00035616,120]
[422299543,1778799049000,-500.0,0.00035616,120]
[422299554,1778799049000,-500.0,0.00035616,7]
[422299542,1778799049000,-500.0,0.00035616,120]
[422299553,1778799049000,-500.0,0.00035616,7]
[422299547,1778799049000,-500.0,0.00035616,120]
[422299549,1778799049000,-500.0,0.00035616,7]
[422299521,1778799049000,-631.0,0.00035567,30]
[422299534,1778799049000,-500.0,0.00035616,120]
[422299519,1778799049000,-428.0,0.00035559,30]
[422299504,1778799049000,-153.24627148,0.00035353,7]
[422299512,1778799049000,-153.24627148,0.0003551,7]
[422299491,1778799049000,-848.0,0.00035186,2]
[422299492,1778799049000,-153.24627148,0.00035196,7]
[422299494,1778799049000,-150.0,0.00035208,7]
[422299545,1778799049000,-500.0,0.00035616,120]
[422299505,1778799049000,-150.0,0.00035377,7]
[422299493,1778799049000,-1500.0,0.000352,7]
[422299495,1778799049000,-150.0,0.00035215,7]
[422299496,1778799049000,-1831.296,0.00035223,41]
[422299501,1778799049000,-153.24627148,0.00035314,7]
[422299502,1778799049000,-150.0,0.00035316,7]
[422299500,1778799049000,-415.36,0.000353,14]
[422299503,1778799049000,-150.0,0.00035338,7]
[422299497,1778799049000,-150.0,0.00035224,7]
[422299498,1778799049000,-153.24627148,0.00035235,7]
[422299499,1778799049000,-153.24627148,0.00035274,7]
[422299507,1778799049000,-153.24627148,0.00035392,7]
[422299506,1778799049000,-150.0,0.00035392,7]
[422299510,1778799049000,-153.24627148,0.00035471,7]
[422299508,1778799049000,-150.0,0.00035409,7]
[422299518,1778799049000,-301.0,0.00035559,30]
[422299511,1778799049000,-150.0,0.00035471,7]
[422299509,1778799049000,-153.24627148,0.00035432,7]
[422299514,1778799049000,-153.24627148,0.0003555,7]
[422299513,1778799049000,-150.0,0.00035546,7]
[422299517,1778799049000,-476.0,0.00035559,30]
[422299515,1778799049000,-286.0,0.00035559,30]
[422299516,1778799049000,-906.0,0.00035559,30]
[422299520,1778799049000,-1953.0,0.00035559,30]
[422299544,1778799049000,-500.0,0.00035616,120]
[422299522,1778799049000,-239.0,0.00035567,30]
[422299548,1778799049000,-522.47351871,0.00035616,120]
[422299585,1778799049000,-815.99462326,0.00035616,7]
[422299583,1778799049000,-815.99462326,0.00035616,7]
[422299586,1778799049000,-815.99462326,0.00035616,7]
[422299584,1778799049000,-815.99462326,0.00035616,7]
[422299590,1778799049000,-815.99462326,0.00035616,7]
[422299597,1778799049000,-815.99462326,0.00035616,7]
[422299589,1778799049000,-815.99462326,0.00035616,7]
[422299598,1778799049000,-815.99462326,0.00035616,7]
[422299591,1778799049000,-815.99462326,0.00035616,7]
[422299594,1778799049000,-815.99462326,0.00035616,7]
[422299601,1778799049000,-815.99462326,0.00035616,7]
[422299592,1778799049000,-815.99462326,0.00035616,7]
[422299596,1778799049000,-815.99462326,0.00035616,7]
[422299600,1778799049000,-815.99462326,0.00035616,7]
[422299599,1778799049000,-815.99462326,0.00035616,7]
[422299593,1778799049000,-815.99462326,0.00035616,7]
[422299602,1778799049000,-815.99462326,0.00035616,7]
[422299607,1778799049000,-815.99462326,0.00035616,7]
[422299608,1778799049000,-815.99462326,0.00035616,7]
[422299605,1778799049000,-815.99462326,0.00035616,7]
[422299603,1778799049000,-815.99462326,0.00035616,7]
[422299611,1778799049000,-815.99462326,0.00035616,7]
[422299606,1778799049000,-815.99462326,0.00035616,7]
[422299604,1778799049000,-815.99462326,0.00035616,7]
[422299610,1778799049000,-815.99462326,0.00035616,7]
[422299609,1778799049000,-815.99462326,0.00035616,7]
[422299551,1778799049000,-500.0,0.00035616,7]
[422299582,1778799049000,-815.99462326,0.00035616,7]
[422299581,1778799049000,-815.99462326,0.00035616,7]
[422299595,1778799049000,-815.99462326,0.00035616,7]
[422299587,1778799049000,-815.99462326,0.00035616,7]
[422299588,1778799049000,-815.99462326,0.00035616,7]
[422299550,1778799049000,-500.0,0.00035616,7]
[422299552,1778799049000,-474.9349612,0.00035616,7]
[422299555,1778799049000,-500.0,0.00035616,7]
[422299556,1778799049000,-500.0,0.00035616,7]
[422299559,1778799049000,-815.99462326,0.00035616,7]
[422299557,1778799049000,-500.0,0.00035616,7]
[422299558,1778799049000,-500.0,0.00035616,7]
[422299562,1778799049000,-815.99462326,0.00035616,7]
[422299563,1778799049000,-815.99462326,0.00035616,7]
[422299560,1778799049000,-815.99462326,0.00035616,7]
[422299565,1778799049000,-815.99462326,0.00035616,7]
[422299564,1778799049000,-815.99462326,0.00035616,7]
[422299567,1778799049000,-815.99462326,0.00035616,7]
[422299561,1778799049000,-815.99462326,0.00035616,7]
[422299566,1778799049000,-815.99462326,0.00035616,7]
[422299580,1778799049000,-815.99462326,0.00035616,7]
[422299577,1778799049000,-815.99462326,0.00035616,7]
[422299578,1778799049000,-815.99462326,0.00035616,7]
[422299579,1778799049000,-815.99462326,0.00035616,7]
[422299576,1778799049000,-815.99462326,0.00035616,7]
[422299573,1778799049000,-815.99462326,0.00035616,7]
[422299575,1778799049000,-815.99462326,0.00035616,7]
[422299570,1778799049000,-815.99462326,0.00035616,7]
[422299574,1778799049000,-815.99462326,0.00035616,7]
[422299571,1778799049000,-815.99462326,0.00035616,7]
[422299568,1778799049000,-815.99462326,0.00035616,7]
[422299569,1778799049000,-815.99462326,0.00035616,7]
[422299572,1778799049000,-815.99462326,0.00035616,7]
[422299635,1778799050000,-817.45175653,0.00035616,7]
[422299633,1778799050000,-817.45175653,0.00035616,7]
[422299636,1778799050000,-817.45175653,0.00035616,7]
[422299631,1778799050000,-817.45175653,0.00035616,7]
[422299638,1778799050000,-817.45175653,0.00035616,7]
[422299634,1778799050000,-817.45175653,0.00035616,7]
[422299639,1778799050000,-817.45175653,0.00035616,7]
[422299644,1778799050000,-153.24627148,0.00035628,7]
[422299641,1778799050000,-749.99,0.00035616,2]
[422299640,1778799050000,-817.45175653,0.00035616,7]
[422299642,1778799050000,-237.97922959,0.00035616,2]
[422299643,1778799050000,-214.80165756,0.00035628,120]
[422299647,1778799050000,-150.0,0.00035637,7]
[422299630,1778799050000,-817.45175653,0.00035616,7]
[422299645,1778799050000,-163.89776066,0.00035629,30]
[422299637,1778799050000,-817.45175653,0.00035616,7]
[422299629,1778799050000,-817.45175653,0.00035616,7]
[422299613,1778799050000,-815.99462326,0.00035616,7]
[422299627,1778799050000,-817.45175653,0.00035616,7]
[422299646,1778799050000,-623.0,0.0003563,13]
[422299615,1778799050000,-815.99462326,0.00035616,7]
[422299612,1778799050000,-815.99462326,0.00035616,7]
[422299614,1778799050000,-815.99462326,0.00035616,7]
[422299617,1778799050000,-815.99462326,0.00035616,7]
[422299616,1778799050000,-815.99462326,0.00035616,7]
[422299619,1778799050000,-815.99462326,0.00035616,7]
[422299632,1778799050000,-817.45175653,0.00035616,7]
[422299620,1778799050000,-817.45175653,0.00035616,7]
[422299622,1778799050000,-817.45175653,0.00035616,7]
[422299621,1778799050000,-817.45175653,0.00035616,7]
[422299624,1778799050000,-817.45175653,0.00035616,7]
[422299623,1778799050000,-817.45175653,0.00035616,7]
[422299625,1778799050000,-817.45175653,0.00035616,7]
[422299626,1778799050000,-817.45175653,0.00035616,7]
[422299628,1778799050000,-817.45175653,0.00035616,7]
[422299618,1778799050000,-815.99462326,0.00035616,7]
[422299649,1778799050000,-153.24627148,0.00035668,7]
[422299657,1778799050000,-174.4,0.00035735,30]
[422299650,1778799050000,-733.01,0.000357,120]
[422299672,1778799050000,-153.24627148,0.00035864,7]
[422299670,1778799050000,-153.24627148,0.00035786,7]
[422299674,1778799050000,-150.0,0.00035885,7]
[422299677,1778799050000,-153.24627148,0.00035904,7]
[422299675,1778799050000,-1806.76978662,0.00035898,2]
[422299673,1778799050000,-150.0,0.00035873,7]
[422299681,1778799050000,-153.24627148,0.00035943,7]
[422299671,1778799050000,-153.24627148,0.00035825,7]
[422299676,1778799050000,-150.0,0.00035904,7]
[422299680,1778799050000,-10000.0,0.00035938,2]
[422299679,1778799050000,-150.0,0.00035937,7]
[422299683,1778799050000,-151.0,0.00035978,60]
[422299682,1778799050000,-150.0,0.00035965,7]
[422299684,1778799050000,-150.0,0.00035981,2]
[422299685,1778799050000,-153.24627148,0.00035982,7]
[422299648,1778799050000,-2676.97734028,0.00035645,2]
[422299678,1778799050000,-150.0,0.00035923,7]
[422299667,1778799050000,-930.0,0.00035765,2]
[422299686,1778799050000,-1817.69,0.00036,14]
[422299665,1778799050000,-3542.0,0.00035765,2]
[422299651,1778799050000,-152.0,0.00035701,5]
[422299669,1778799050000,-150.0,0.0003578,7]
[422299654,1778799050000,-187.17,0.00035703,30]
[422299653,1778799050000,-187.16,0.00035703,30]
[422299652,1778799050000,-187.16,0.00035703,30]
[422299656,1778799050000,-150.0,0.00035715,7]
[422299659,1778799050000,-246.94,0.00035735,2]
[422299655,1778799050000,-153.24627148,0.00035707,7]
[422299662,1778799050000,-1354.0,0.00035765,2]
[422299664,1778799050000,-926.0,0.00035765,2]
[422299661,1778799050000,-153.24627148,0.00035746,7]
[422299660,1778799050000,-150.0,0.00035746,7]
[422299663,1778799050000,-625.0,0.00035765,2]
[422299668,1778799050000,-3630.0,0.00035765,2]
[422299658,1778799050000,-525.92,0.00035735,2]
[422299666,1778799050000,-1270.0,0.00035765,2]
[422299717,1778799051000,-150.0,0.00036392,7]
[422299712,1778799051000,-153.24627148,0.00036297,7]
[422299715,1778799051000,-153.24627148,0.00036336,7]
[422299711,1778799051000,-150.0,0.00036277,7]
[422299713,1778799051000,-150.0,0.00036336,7]
[422299718,1778799051000,-212708.0,0.000364,30]
[422299710,1778799051000,-153.24627148,0.00036257,7]
[422299714,1778799051000,-150.0,0.00036336,7]
[422299721,1778799051000,-153.24627148,0.00036415,7]
[422299724,1778799051000,-153.24627148,0.00036454,7]
[422299719,1778799051000,-150.0,0.000364,30]
[422299722,1778799051000,-150.0,0.00036429,7]
[422299720,1778799051000,-214.926817,0.00036404,30]
[422299723,1778799051000,-150.0,0.00036454,7]
[422299727,1778799051000,-200.0,0.00036532,5]
[422299707,1778799051000,-187.16,0.00036251,30]
[422299725,1778799051000,-153.24627148,0.00036493,7]
[422299729,1778799051000,-150.0,0.00036536,7]
[422299730,1778799051000,-200.0,0.00036545,5]
[422299728,1778799051000,-153.24627148,0.00036533,7]
[422299726,1778799051000,-150.0,0.00036521,7]
[422299716,1778799051000,-153.24627148,0.00036375,7]
[422299701,1778799051000,-2458.5,0.00036153,30]
[422299705,1778799051000,-150.0,0.00036223,7]
[422299731,1778799051000,-163.89776069,0.00036552,30]
[422299690,1778799051000,-1000.0,0.00036048,2]
[422299687,1778799051000,-2209.03,0.00036,30]
[422299688,1778799051000,-150.0,0.00036012,7]
[422299689,1778799051000,-153.24627148,0.00036021,7]
[422299692,1778799051000,-150.0,0.00036054,7]
[422299693,1778799051000,-153.24627148,0.00036061,7]
[422299694,1778799051000,-163.89776066,0.00036091,30]
[422299691,1778799051000,-1000.0,0.00036048,2]
[422299708,1778799051000,-187.16,0.00036251,30]
[422299695,1778799051000,-2810.45,0.000361,30]
[422299697,1778799051000,-153.24627148,0.000361,7]
[422299698,1778799051000,-153.24627148,0.00036139,7]
[422299699,1778799051000,-150.0,0.00036151,7]
[422299700,1778799051000,-150.0,0.00036151,7]
[422299704,1778799051000,-153.24627148,0.00036218,7]
[422299703,1778799051000,-623.0,0.00036192,14]
[422299702,1778799051000,-153.24627148,0.00036179,7]
[422299706,1778799051000,-150.0,0.00036236,7]
[422299709,1778799051000,-187.17,0.00036251,30]
[422299696,1778799051000,-150.0,0.000361,7]
[422299732,1778799051000,-286.0,0.00036559,30]
[422299777,1778799051000,-153.24627148,0.00036847,7]
[422299737,1778799051000,-1953.0,0.00036559,30]
[422299760,1778799051000,-150.0,0.00036769,7]
[422299756,1778799051000,-150.0,0.00036707,7]
[422299757,1778799051000,-153.24627148,0.00036729,7]
[422299758,1778799051000,-150.0,0.00036731,7]
[422299763,1778799051000,-187.16,0.00036799,30]
[422299766,1778799051000,-150.0,0.00036808,7]
[422299765,1778799051000,-187.17,0.00036799,30]
[422299767,1778799051000,-153.24627148,0.00036808,7]
[422299768,1778799051000,-500.0,0.00036811,2]
[422299759,1778799051000,-623.0,0.00036753,14]
[422299770,1778799051000,-449.0,0.00036811,2]
[422299771,1778799051000,-200.0,0.00036811,2]
[422299764,1778799051000,-187.16,0.00036799,30]
[422299772,1778799051000,-200.0,0.00036811,2]
[422299775,1778799051000,-200.0,0.00036811,2]
[422299774,1778799051000,-200.0,0.00036811,2]
[422299779,1778799051000,-150.0,0.00036892,7]
[422299778,1778799051000,-153.24627148,0.00036887,7]
[422299776,1778799051000,-150.0,0.00036835,7]
[422299735,1778799051000,-301.0,0.00036559,30]
[422299773,1778799051000,-200.0,0.00036811,2]
[422299755,1778799051000,-150.0,0.00036707,7]
[422299769,1778799051000,-500.0,0.00036811,2]
[422299753,1778799051000,-970.69,0.000367,7]
[422299736,1778799051000,-428.0,0.00036559,30]
[422299754,1778799051000,-415.36,0.000367,15]
[422299733,1778799051000,-906.0,0.00036559,30]
[422299734,1778799051000,-476.0,0.00036559,30]
[422299738,1778799051000,-150.0,0.00036562,7]
[422299739,1778799051000,-631.0,0.00036567,30]
[422299741,1778799051000,-469.0,0.00036567,30]
[422299743,1778799051000,-4071.0,0.00036567,30]
[422299742,1778799051000,-3121.0,0.00036567,30]
[422299747,1778799051000,-200.0,0.00036629,5]
[422299745,1778799051000,-153.24627148,0.00036572,7]
[422299744,1778799051000,-396.0,0.00036567,30]
[422299746,1778799051000,-153.24627148,0.00036611,7]
[422299740,1778799051000,-239.0,0.00036567,30]
[422299748,1778799051000,-150.0,0.00036631,7]
[422299749,1778799051000,-153.24627148,0.00036651,7]
[422299751,1778799051000,-153.24627148,0.0003669,7]
[422299761,1778799051000,-153.24627148,0.00036769,7]
[422299762,1778799051000,-158.0,0.00036789,3]
[422299752,1778799051000,-170.28,0.00036693,10]
[422299750,1778799051000,-366.82991459,0.00036667,30]
[422299817,1778799052000,-300.0,0.00036994,2]
[422299813,1778799052000,-300.0,0.00036994,2]
[422299814,1778799052000,-300.0,0.00036994,2]
[422299812,1778799052000,-300.0,0.00036994,2]
[422299811,1778799052000,-300.0,0.00036994,2]
[422299806,1778799052000,-300.0,0.00036994,2]
[422299810,1778799052000,-300.0,0.00036994,2]
[422299809,1778799052000,-300.0,0.00036994,2]
[422299828,1778799052000,-893.41080806,0.00036994,2]
[422299815,1778799052000,-300.0,0.00036994,2]
[422299827,1778799052000,-527.74756033,0.00036994,2]
[422299829,1778799052000,-1066.9267668,0.00036994,2]
[422299818,1778799052000,-300.0,0.00036994,2]
[422299826,1778799052000,-300.0,0.00036994,2]
[422299819,1778799052000,-300.0,0.00036994,2]
[422299821,1778799052000,-300.0,0.00036994,2]
[422299825,1778799052000,-300.0,0.00036994,2]
[422299823,1778799052000,-300.0,0.00036994,2]
[422299820,1778799052000,-300.0,0.00036994,2]
[422299822,1778799052000,-604.46475032,0.00036994,2]
[422299830,1778799052000,-300.0,0.00036994,2]
[422299832,1778799052000,-300.0,0.00036994,2]
[422299807,1778799052000,-300.0,0.00036994,2]
[422299831,1778799052000,-726.07109283,0.00036994,2]
[422299808,1778799052000,-300.0,0.00036994,2]
[422299782,1778799052000,-153.24627148,0.00036965,7]
[422299801,1778799052000,-1094.76341147,0.00036994,2]
[422299781,1778799052000,-153.24627148,0.00036926,7]
[422299783,1778799052000,-151.0,0.00036978,60]
[422299780,1778799052000,-150.0,0.000369,7]
[422299785,1778799052000,-150.0,0.00036985,7]
[422299784,1778799052000,-150.0,0.00036985,7]
[422299787,1778799052000,-150.0,0.00036985,7]
[422299793,1778799052000,-309.84439532,0.00036994,2]
[422299788,1778799052000,-300.0,0.00036994,2]
[422299786,1778799052000,-150.0,0.00036985,7]
[422299791,1778799052000,-300.0,0.00036994,2]
[422299790,1778799052000,-300.0,0.00036994,2]
[422299792,1778799052000,-484.1034747,0.00036994,2]
[422299789,1778799052000,-300.0,0.00036994,2]
[422299795,1778799052000,-300.0,0.00036994,2]
[422299794,1778799052000,-300.0,0.00036994,2]
[422299797,1778799052000,-300.0,0.00036994,2]
[422299798,1778799052000,-300.0,0.00036994,2]
[422299803,1778799052000,-300.0,0.00036994,2]
[422299800,1778799052000,-300.0,0.00036994,2]
[422299796,1778799052000,-300.0,0.00036994,2]
[422299802,1778799052000,-300.0,0.00036994,2]
[422299799,1778799052000,-300.0,0.00036994,2]
[422299804,1778799052000,-300.0,0.00036994,2]
[422299805,1778799052000,-300.0,0.00036994,2]
[422299833,1778799052000,-301.79443579,0.00036994,2]
[422299816,1778799052000,-492.69539266,0.00036994,2]
[422299834,1778799052000,-300.0,0.00036994,2]
[422299860,1778799052000,-300.0,0.00036994,2]
[422299868,1778799052000,-451.91661156,0.00036994,2]